bitfinex-derivatives/quotes_BTCF0:USTF0_20250924
["timestamp","ask_amount","ask_price","bid_price","bid_amount"]
[1758731225051,0.02189,113540.0,113530.0,1.32537466]
[1758731225651,0.1099226,113540.0,113530.0,1.32537466]
[1758731226247,0.1234226,113540.0,113530.0,0.4853603]
[1758731226450,0.1234226,113540.0,113530.0,0.4726103]
[1758731227851,0.1234226,113540.0,113530.0,0.4853603]
[1758731228948,0.03539,113540.0,113530.0,0.4853603]
[1758731229251,0.02189,113540.0,113530.0,0.8372961]
[1758731230648,0.1099226,113540.0,113530.0,0.8372961]
[1758731231659,0.02189,113540.0,113530.0,0.8372961]
[1758731232154,0.04229238,113550.0,113540.0,0.01275]
[1758731232354,0.93415718,113550.0,113540.0,0.8351884]
[1758731233263,0.84613238,113550.0,113540.0,0.8351884]
[1758731233457,0.04329238,113550.0,113540.0,1.3232592]
[1758731233662,0.02182238,113550.0,113540.0,1.3232592]
[1758731233858,0.02077015,113570.0,113550.0,0.0880234]
[1758731234163,0.04224015,113570.0,113560.0,0.8351729]
[1758731234759,0.02077015,113570.0,113560.0,2.3997729]
[1758731234958,0.02077015,113570.0,113560.0,2.48782819]
[1758731235258,0.04177468,113590.0,113580.0,0.1224216]
[1758731235464,0.04177468,113590.0,113580.0,0.8351574]
[1758731236350,0.04177468,113590.0,113580.0,0.4832216]
[1758731236557,0.04177468,113590.0,113580.0,0.8351574]
[1758731236763,0.05777468,113590.0,113580.0,0.84393731]
[1758731237359,0.05777468,113590.0,113580.0,0.91497061]
[1758731237762,0.03747,113590.0,113580.0,0.91497061]
[1758731237961,0.04347,113590.0,113580.0,0.91497061]
[1758731238255,0.04347,113590.0,113580.0,0.56303481]
[1758731238462,0.1450138,113590.0,113580.0,0.56303481]
[1758731238859,0.05702,113590.0,113580.0,0.56303481]
[1758731239561,0.05302,113590.0,113580.0,0.56303481]
[1758731239761,0.03947,113590.0,113580.0,0.56303481]
[1758731240366,0.02747,113590.0,113580.0,0.56303481]
[1758731240666,0.02447,113590.0,113580.0,0.56303481]
[1758731241366,0.02447,113590.0,113580.0,0.91497061]
[1758731241668,0.1230138,113590.0,113580.0,0.91497061]
[1758731242062,0.1230138,113590.0,113580.0,0.56303481]
[1758731245070,0.03502,113590.0,113580.0,0.56303481]
[1758731245372,0.03502,113590.0,113580.0,0.91497061]
[1758731245572,0.02147,113590.0,113580.0,0.91497061]
[1758731247173,0.1094638,113590.0,113580.0,0.91497061]
[1758731247473,0.02147,113590.0,113580.0,0.91497061]
[1758731248573,0.0235,113600.0,113590.0,0.1239838]
[1758731248574,0.0316,113600.0,113590.0,0.1239838]
[1758731248871,0.1195861,113600.0,113590.0,0.8367196]
[1758731249772,0.1331361,113600.0,113590.0,0.4847838]
[1758731250272,0.1391361,113600.0,113590.0,0.4847838]
[1758731251474,0.05115,113600.0,113590.0,0.4847838]
[1758731251776,0.127586,113600.0,113590.0,0.4847838]
[1758731252678,0.141136,113600.0,113590.0,0.4847838]
[1758731253776,0.141136,113600.0,113590.0,0.4716938]
[1758731259177,0.05315,113600.0,113590.0,0.4716938]
[1758731259585,0.05315,113600.0,113590.0,0.8236296]
[1758731260082,0.0396,113600.0,113590.0,0.8367196]
[1758731261479,0.127586,113600.0,113590.0,0.8367196]
[1758731262181,0.0396,113600.0,113590.0,0.8367196]
[1758731263184,0.018,113600.0,113590.0,1.32475164]
[1758731268583,0.018,113600.0,113590.0,1.67562144]
[1758731270185,0.018,113600.0,113590.0,0.97281584]
[1758731270373,0.018,113600.0,113590.0,1.67562144]
[1758731276397,0.00680612,113620.0,113610.0,0.03462]
[1758731276696,0.02936612,113620.0,113610.0,1.9985211]
[1758731276890,0.02936612,113620.0,113610.0,2.08655314]
[1758731278391,0.00680612,113620.0,113610.0,2.08655314]
[1758731279198,0.01080612,113620.0,113610.0,2.08655314]
[1758731280003,0.01480612,113620.0,113610.0,2.08655314]
[1758731282108,0.01480612,113620.0,113610.0,1.73515034]
[1758731282418,0.01480612,113620.0,113610.0,2.08655314]
[1758731284006,0.01480612,113620.0,113610.0,2.08643314]
[1758731286610,0.01480612,113620.0,113610.0,1.73503034]
[1758731286816,0.01480612,113620.0,113610.0,2.08643314]
[1758731288115,0.01480612,113620.0,113610.0,1.73503034]
[1758731288313,0.01480612,113620.0,113610.0,2.08643314]
[1758731288912,0.10277672,113620.0,113610.0,2.08643314]
[1758731289710,0.80558232,113620.0,113610.0,0.93223034]
[1758731289908,1.24238232,113620.0,113610.0,1.1826111]
[1758731290312,1.15441172,113620.0,113610.0,1.1826111]
[1758731290509,0.78936892,113620.0,113610.0,1.1955411]
[1758731291208,0.79236892,113620.0,113610.0,1.1955411]
[1758731291515,0.80600892,113620.0,113610.0,1.1955411]
[1758731291710,0.88033952,113620.0,113610.0,1.1955411]
[1758731291916,0.89397952,113620.0,113610.0,1.1955411]
[1758731292515,0.89397952,113620.0,113610.0,1.1826111]
[1758731292815,1.24438232,113620.0,113610.0,0.02163]
[1758731293210,1.24438232,113620.0,113610.0,0.3730328]
[1758731293411,1.24438232,113620.0,113610.0,0.4610111]
[1758731293816,0.54157672,113620.0,113610.0,0.4610111]
[1758731294318,1.24438232,113620.0,113610.0,0.1096083]
[1758731295219,1.24438232,113620.0,113610.0,0.4610111]
[1758731295518,1.24438232,113620.0,113610.0,0.4605111]
[1758731296117,1.24438232,113620.0,113610.0,0.1091083]
[1758731297020,1.24438232,113620.0,113610.0,0.8213111]
[1758731297522,0.89297952,113620.0,113610.0,0.8213111]
[1758731297718,0.54157672,113620.0,113610.0,0.8347711]
[1758731297911,0.89297952,113620.0,113610.0,0.8347711]
[1758731301416,0.80500892,113620.0,113610.0,0.8347711]
[1758731301622,0.80500892,113620.0,113610.0,1.27419044]
[1758731301623,0.01680612,113620.0,113610.0,1.27419044]
[1758731301824,0.01680612,113620.0,113610.0,2.07671044]
[1758731302217,0.01680612,113620.0,113610.0,1.72530764]
[1758731304026,0.01680612,113620.0,113610.0,2.07671044]
[1758731304623,0.01680612,113620.0,113610.0,1.72530764]
[1758731313719,0.12600672,113620.0,113610.0,0.92278764]
[1758731313924,0.13949672,113620.0,113610.0,1.72518764]
[1758731314124,0.49089952,113620.0,113610.0,0.92278764]
[1758731314441,0.84230232,113620.0,113610.0,0.4699083]
[1758731314622,1.26276985,113620.0,113600.0,0.1567628]
[1758731314824,2.36539484,113610.0,113600.0,0.15635534]
[1758731315023,0.1227138,113590.0,113580.0,0.29767701]
[1758731315227,0.8255194,113590.0,113580.0,0.0921633]
[1758731315628,1.2764766,113590.0,113580.0,0.0921633]
[1758731316029,1.2764766,113590.0,113580.0,0.1801649]
[1758731316531,1.2764766,113590.0,113580.0,0.5409649]
[1758731316832,0.9250738,113590.0,113580.0,0.5509649]
[1758731317034,1.2764766,113590.0,113580.0,0.5509649]
[1758731317529,0.4606266,113590.0,113580.0,0.9178277]
[1758731317733,0.02123,113590.0,113580.0,1.2692305]
[1758731318033,0.3726328,113590.0,113580.0,1.00586749]
[1758731318232,0.3726328,113590.0,113580.0,1.35727029]
[1758731319027,0.02123,113590.0,113580.0,1.35727029]
[1758731320634,0.02123,113590.0,113580.0,2.15971029]
[1758731320835,0.1092237,113590.0,113580.0,2.15971029]
[1758731321036,0.1092237,113590.0,113580.0,1.45690469]
[1758731321238,0.1092237,113590.0,113580.0,2.15971029]
[1758731322135,0.4606265,113590.0,113580.0,2.15971029]
[1758731322324,0.4741165,113590.0,113580.0,0.5529648]
[1758731322524,0.4741165,113590.0,113580.0,0.9043676]
[1758731322930,0.4741165,113590.0,113580.0,0.5529648]
[1758731323539,0.4741165,113590.0,113580.0,0.8983676]
[1758731323740,0.1227137,113590.0,113580.0,0.8983676]
[1758731323941,0.4741165,113590.0,113580.0,0.8983676]
[1758731324336,0.8741165,113590.0,113580.0,0.5449648]
[1758731324542,0.8741165,113590.0,113580.0,0.5469648]
[1758731325336,0.8741165,113590.0,113580.0,0.5449648]
[1758731326339,0.5227137,113590.0,113580.0,0.5449648]
[1758731326542,0.8741165,113590.0,113580.0,0.8963676]
[1758731327846,0.8741165,113590.0,113580.0,0.5449648]
[1758731328046,0.8741165,113590.0,113580.0,0.8963676]
[1758731328536,0.87431335,113590.0,113580.0,0.4569633]
[1758731328732,0.87431335,113590.0,113580.0,0.004]
[1758731328937,1.23511335,113590.0,113580.0,0.004]
[1758731329138,0.87431335,113590.0,113580.0,0.004]
[1758731330644,0.87431335,113590.0,113580.0,0.02595]
[1758731334253,0.87431335,113590.0,113580.0,0.1139514]
[1758731334550,0.86791335,113590.0,113580.0,0.1139514]
[1758731336946,0.5163137,113590.0,113580.0,0.4747514]
[1758731337154,1.27031335,113590.0,113580.0,0.4747514]
[1758731338253,1.27031335,113590.0,113580.0,0.4874814]
[1758731338453,0.46791335,113590.0,113580.0,0.4874814]
[1758731338653,1.27031335,113590.0,113580.0,0.4874814]
[1758731339049,0.46791335,113590.0,113580.0,0.4874814]
[1758731339254,1.27031335,113590.0,113580.0,0.4874814]
[1758731341052,1.18231965,113590.0,113580.0,0.4874814]
[1758731341949,1.27031335,113590.0,113580.0,0.4874814]
[1758731343452,0.9187137,113590.0,113580.0,0.4874814]
[1758731345058,1.27031335,113590.0,113580.0,0.4874814]
[1758731345868,0.83072,113590.0,113580.0,0.4874814]
[1758731346057,0.01483,113590.0,113580.0,1.23908105]
[1758731346252,0.01483,113590.0,113580.0,1.32712084]
[1758731349656,0.82494,113600.0,113590.0,0.1230537]
[1758731349857,0.02258,113600.0,113590.0,0.83545335]
[1758731350362,0.02258,113600.0,113590.0,0.92349314]
[1758731352354,0.02358,113600.0,113590.0,0.92349314]
[1758731352755,0.02458,113600.0,113590.0,0.92349314]
[1758731353667,0.02458,113600.0,113590.0,1.72577314]
[1758731353861,0.112566,113600.0,113590.0,1.37417349]
[1758731354061,0.112566,113600.0,113590.0,1.72577314]
[1758731354364,0.02458,113600.0,113590.0,0.92349314]
[1758731355462,0.02458,113600.0,113590.0,1.72573314]
[1758731363376,0.1125661,113600.0,113590.0,1.72573314]
[1758731363975,0.1105661,113600.0,113590.0,1.72973314]
[1758731364174,0.02258,113600.0,113590.0,1.72973314]
[1758731364370,0.02258,113600.0,113590.0,1.37813349]
[1758731364677,0.02258,113600.0,113590.0,1.72973314]
[1758731364875,0.1105661,113600.0,113590.0,1.72973314]
[1758731367572,0.02258,113600.0,113590.0,1.72973314]
[1758731368368,0.04135213,113610.0,113600.0,0.101586]
[1758731368573,0.04135213,113610.0,113600.0,0.83725565]
[1758731368775,0.89075932,113620.0,113610.0,0.1248483]
[1758731368975,0.87726932,113620.0,113610.0,0.83724795]
[1758731369883,0.87726932,113620.0,113610.0,0.4856483]
[1758731371186,0.88426932,113620.0,113610.0,0.4856483]
[1758731371485,0.88426932,113620.0,113610.0,0.55735258]
[1758731371684,0.89803932,113620.0,113610.0,0.55735258]
[1758731372182,0.90103932,113620.0,113610.0,0.55735258]
[1758731372379,1.25263897,113620.0,113610.0,0.55735258]
[1758731373889,1.25263897,113620.0,113610.0,0.45577428]
[1758731374289,1.25263897,113620.0,113610.0,0.54375248]
[1758731374489,0.49139897,113620.0,113610.0,0.54375248]
[1758731374787,1.29335897,113620.0,113610.0,0.54375248]
[1758731375589,1.29335897,113620.0,113610.0,0.4720482]
[1758731376200,1.29335897,113620.0,113610.0,0.54377359]
[1758731390615,1.64459004,113620.0,113610.0,0.54377359]
[1758731391315,1.64459004,113620.0,113610.0,0.89518895]
[1758731391916,1.64459004,113620.0,113610.0,0.54377359]
[1758731392116,1.64459004,113620.0,113610.0,0.89518895]
[1758731392314,1.64459004,113620.0,113610.0,0.54377359]
[1758731392617,1.64459004,113620.0,113610.0,0.89518895]
[1758731393019,0.84263004,113620.0,113610.0,0.89518895]
[1758731393215,1.64431004,113620.0,113610.0,0.89518895]
[1758731395114,1.64431004,113620.0,113610.0,0.54377359]
[1758731399025,0.94147932,113620.0,113610.0,0.54377359]
[1758731399222,1.64431004,113620.0,113610.0,0.54377359]
[1758731399525,1.64431004,113620.0,113610.0,0.4720482]
[1758731401523,1.64431004,113620.0,113610.0,0.82346356]
[1758731402026,1.29289468,113620.0,113610.0,0.83652356]
[1758731402219,1.29273468,113620.0,113610.0,0.83652356]
[1758731402420,0.94131932,113620.0,113610.0,0.83652356]
[1758731402618,0.83957612,113620.0,113610.0,0.83652356]
[1758731402825,0.81832612,113620.0,113610.0,1.3245401]
[1758731403027,0.01680612,113620.0,113610.0,2.47747546]
[1758731403330,0.36822148,113620.0,113610.0,2.1260601]
[1758731403532,0.36822148,113620.0,113610.0,1.77464474]
[1758731403729,0.01680612,113620.0,113610.0,2.1260601]
[1758731405930,0.01680612,113620.0,113610.0,2.19690573]
[1758731407327,0.01680612,113620.0,113610.0,1.84549037]
[1758731407533,0.01680612,113620.0,113610.0,2.19690573]
[1758731408032,0.01680612,113620.0,113610.0,2.54832109]
[1758731409435,0.01680612,113620.0,113610.0,2.19690573]
[1758731416041,0.01680612,113620.0,113610.0,1.84533037]
[1758731416240,0.01680612,113620.0,113610.0,2.19674573]
[1758731421848,0.01680612,113620.0,113610.0,2.19674573]
[1758731424145,0.36822148,113620.0,113610.0,0.64397037]
[1758731424447,0.84252734,113620.0,113610.0,0.54289383]
[1758731424651,1.24252734,113620.0,113610.0,0.54289383]
[1758731426046,0.89111198,113620.0,113610.0,0.89430919]
[1758731427948,0.89111198,113620.0,113610.0,0.54289383]
[1758731428142,0.89111198,113620.0,113610.0,0.89430919]
[1758731428338,0.89111198,113620.0,113610.0,0.90827919]
[1758731429341,0.87835198,113620.0,113610.0,0.90827919]
[1758731429749,1.67963198,113620.0,113610.0,0.90827919]
[1758731431644,1.32821662,113620.0,113610.0,0.90827919]
[1758731431949,1.59166148,113620.0,113610.0,0.90827919]
[1758731432153,0.03896612,113620.0,113610.0,0.90827919]
[1758731432448,0.01680612,113620.0,113610.0,1.34771109]
[1758731433045,0.03896612,113620.0,113610.0,0.99629573]
[1758731433950,0.01680612,113620.0,113610.0,0.99629573]
[1758731434348,0.01680612,113620.0,113610.0,2.09912645]
[1758731434547,0.101719,113650.0,113640.0,0.124965]
[1758731434548,0.110109,113650.0,113640.0,0.124965]
[1758731434753,0.199309,113650.0,113640.0,1.18859572]
[1758731434953,0.199309,113650.0,113640.0,0.83718036]
[1758731434954,0.55072436,113650.0,113640.0,0.83718036]
[1758731435346,0.56348436,113650.0,113640.0,0.83718036]
[1758731436152,0.57348436,113650.0,113640.0,0.83718036]
[1758731436941,0.58048436,113650.0,113640.0,0.83718036]
[1758731437960,0.12836,113650.0,113640.0,0.83718036]
[1758731438157,0.017,113650.0,113640.0,1.27658903]
[1758731439051,0.017,113650.0,113640.0,1.67658903]
[1758731439458,0.017,113650.0,113640.0,1.27658903]
[1758731439969,0.1271073,113650.0,113640.0,1.18863403]
[1758731440263,0.03916,113650.0,113640.0,1.72633367]
[1758731440565,0.03316,113650.0,113640.0,2.07774903]
[1758731440761,0.011,113650.0,113640.0,2.07774903]
[1758731441269,0.001,113650.0,113640.0,2.08174903]
[1758731445976,0.0889473,113650.0,113640.0,2.08174903]
[1758731446669,0.001,113650.0,113640.0,2.08174903]
[1758731446870,0.0889473,113650.0,113640.0,2.08174903]
[1758731447369,0.001,113650.0,113640.0,2.08174903]
[1758731448670,0.001,113650.0,113640.0,1.28058903]
[1758731448867,0.001,113650.0,113640.0,2.08158903]
[1758731450577,0.001,113650.0,113640.0,1.72985799]
[1758731451472,0.001,113650.0,113640.0,2.48095767]
[1758731453479,0.001,113650.0,113640.0,2.12985799]
[1758731453676,0.001,113650.0,113640.0,1.72985799]
[1758731458473,0.001,113650.0,113640.0,2.08095767]
[1758731462376,0.001,113650.0,113640.0,1.37875831]
[1758731462590,0.001,113650.0,113640.0,2.08095767]
[1758731464472,0.0889473,113650.0,113640.0,1.72985799]
[1758731464676,0.88282188,113650.0,113640.0,0.56378831]
[1758731464877,0.89553188,113650.0,113640.0,0.56378831]
[1758731465577,0.5444322,113650.0,113640.0,0.56378831]
[1758731467885,0.89553188,113650.0,113640.0,0.56378831]
[1758731468385,0.5444321,113650.0,113640.0,0.57761831]
[1758731468587,0.4437749,113650.0,113640.0,0.92871799]
[1758731469890,0.0215549,113650.0,113640.0,0.92871799]
[1758731470094,0.0437749,113650.0,113640.0,0.92871799]
[1758731470586,0.1317222,113650.0,113640.0,0.92871799]
[1758731470980,0.0437749,113650.0,113640.0,0.92871799]
[1758731471278,0.1317222,113650.0,113640.0,0.57761831]
[1758731471476,0.1317222,113650.0,113640.0,0.92871799]
[1758731471686,0.1444322,113650.0,113640.0,0.57761831]
[1758731471987,0.89553188,113650.0,113640.0,0.56378831]
[1758731472578,0.89553188,113650.0,113640.0,0.3648]
[1758731472784,0.89553188,113650.0,113640.0,0.004]
[1758731473090,1.25633188,113650.0,113640.0,0.004]
[1758731473292,0.89553188,113650.0,113640.0,0.004]
[1758731473489,1.69633188,113650.0,113640.0,0.004]
[1758731473685,1.69633188,113650.0,113640.0,0.02721]
[1758731475892,1.69633188,113650.0,113640.0,0.115165]
[1758731476892,1.69633188,113650.0,113640.0,0.02721]
[1758731477295,1.69633188,113650.0,113640.0,0.004]
[1758731477494,2.05713188,113650.0,113640.0,0.004]
[1758731479593,2.05713188,113650.0,113640.0,0.02721]
[1758731480297,2.05713188,113650.0,113640.0,0.004]
[1758731480687,2.05713188,113650.0,113640.0,0.0264]
[1758731483088,2.05713188,113650.0,113640.0,0.004]
[1758731484286,1.69633188,113650.0,113640.0,0.004]
[1758731484495,2.05713188,113650.0,113640.0,0.004]
[1758731484789,1.3452322,113650.0,113640.0,0.0264]
[1758731484995,1.69633188,113650.0,113640.0,0.0264]
[1758731485299,1.69633188,113650.0,113640.0,0.004]
[1758731485895,2.05713188,113650.0,113640.0,0.004]
[1758731491097,2.05713188,113650.0,113640.0,0.0264]
[1758731491695,1.69633188,113650.0,113640.0,0.114355]
[1758731492297,1.69707188,113650.0,113640.0,0.091955]
[1758731492601,1.69707188,113650.0,113640.0,0.004]
[1758731494499,1.69707188,113650.0,113640.0,0.091955]
[1758731494702,1.69707188,113650.0,113640.0,0.004]
[1758731497297,0.1236327,113630.0,113620.0,0.4487642]
[1758731497501,1.27561238,113630.0,113620.0,0.4711642]
[1758731498600,1.27561238,113630.0,113620.0,0.4871642]
[1758731500098,1.27561238,113630.0,113620.0,0.4901642]
[1758731501097,1.29593965,113630.0,113620.0,0.4901642]
[1758731506501,1.29593965,113630.0,113620.0,0.4022]
[1758731506799,1.29593965,113630.0,113620.0,0.019]
[1758731507898,1.65673965,113630.0,113620.0,0.019]
[1758731508099,1.29593965,113630.0,113620.0,0.019]
[1758731508300,1.65673965,113630.0,113620.0,0.019]
[1758731508605,1.65673965,113630.0,113620.0,0.1069704]
[1758731508806,1.65673965,113630.0,113620.0,0.1295904]
[1758731508807,1.29593965,113630.0,113620.0,0.1295904]
[1758731509414,1.29593965,113630.0,113620.0,0.1205904]
[1758731509806,0.49505965,113630.0,113620.0,0.1205904]
[1758731510008,1.29593965,113630.0,113620.0,0.1205904]
[1758731510303,1.29593965,113630.0,113620.0,0.1175904]
[1758731510608,0.05599727,113630.0,113620.0,0.4803904]
[1758731510808,0.93124997,113630.0,113620.0,0.84507008]
[1758731511002,0.04240727,113630.0,113620.0,0.84507008]
[1758731511202,0.84328727,113630.0,113620.0,1.24507008]
[1758731511404,0.04240727,113630.0,113620.0,1.24507008]
[1758731511907,0.84328727,113630.0,113620.0,1.24507008]
[1758731512309,0.93124997,113630.0,113620.0,1.24507008]
[1758731512512,0.93124997,113630.0,113620.0,0.8939704]
[1758731512807,1.19459066,113630.0,113620.0,1.24527379]
[1758731514606,1.28255336,113630.0,113620.0,1.24527379]
[1758731515408,1.19459066,113630.0,113620.0,1.24527379]
[1758731518107,1.28255336,113630.0,113620.0,1.24527379]
[1758731518604,1.29577336,113630.0,113620.0,1.23169379]
[1758731520221,1.29577336,113630.0,113620.0,0.8803904]
[1758731520513,1.29577336,113630.0,113620.0,1.23169379]
[1758731523118,1.29577336,113630.0,113620.0,0.8803904]
[1758731523315,1.29577336,113630.0,113620.0,1.23169379]
[1758731524716,1.20781066,113630.0,113620.0,1.23169379]
[1758731524914,1.29577336,113630.0,113620.0,1.23169379]
[1758731525301,1.19455066,113630.0,113620.0,1.24468379]
[1758731525505,1.28251336,113630.0,113620.0,0.8933804]
[1758731525710,1.28251336,113630.0,113620.0,1.59598718]
[1758731525911,1.29553336,113630.0,113620.0,1.23169379]
[1758731526514,1.29553336,113630.0,113620.0,0.8803904]
[1758731526716,1.29553336,113630.0,113620.0,1.23169379]
[1758731528418,1.29553336,113630.0,113620.0,0.8803904]
[1758731528715,1.29553336,113630.0,113620.0,1.23169379]
[1758731529411,1.19455066,113630.0,113620.0,1.24468379]
[1758731529819,0.84324727,113630.0,113620.0,1.59598718]
[1758731530125,0.84324727,113630.0,113620.0,1.28399598]
[1758731530317,0.02032727,113630.0,113620.0,1.68399598]
[1758731531310,0.37163066,113630.0,113620.0,1.33269259]
[1758731532120,0.39336066,113630.0,113620.0,0.5813892]
[1758731532420,0.40638066,113630.0,113620.0,1.63249379]
[1758731533513,0.40638066,113630.0,113620.0,1.2811904]
[1758731533822,0.40638066,113630.0,113620.0,0.4803904]
[1758731534321,0.49434336,113630.0,113620.0,0.4803904]
[1758731534518,0.49434336,113630.0,113620.0,0.83169379]
[1758731535219,0.49434336,113630.0,113620.0,0.84468379]
[1758731535423,0.40638066,113630.0,113620.0,0.84468379]
[1758731535618,0.49434336,113630.0,113620.0,0.84468379]
[1758731537023,0.40638066,113630.0,113620.0,0.84468379]
[1758731537227,0.39336066,113630.0,113620.0,0.84468379]
[1758731537415,0.49434336,113630.0,113620.0,0.84468379]
[1758731538625,0.04205727,113630.0,113620.0,0.84468379]
[1758731538817,0.39336066,113630.0,113620.0,0.84468379]
[1758731539419,0.04205727,113630.0,113620.0,1.28399598]
[1758731539617,0.02032727,113630.0,113620.0,1.68399598]
[1758731545425,0.02032727,113630.0,113620.0,1.84212789]
[1758731548729,0.03674063,113660.0,113650.0,0.1239173]
[1758731548932,0.38804402,113660.0,113650.0,1.19682069]
[1758731550031,0.39004402,113660.0,113650.0,0.8455173]
[1758731550232,0.39004402,113660.0,113650.0,1.19682069]
[1758731550233,0.48498352,113660.0,113650.0,1.19682069]
[1758731550531,0.84889691,113660.0,113650.0,0.8455173]
[1758731550838,0.84889691,113660.0,113650.0,0.8324073]
[1758731551431,0.84889691,113660.0,113650.0,0.4716073]
[1758731552430,0.84489691,113660.0,113650.0,0.4716073]
[1758731553233,0.84489691,113660.0,113650.0,0.4487473]
[1758731553421,0.84489691,113660.0,113650.0,0.5403947]
[1758731554524,1.24489691,113660.0,113650.0,0.5175346]
[1758731554924,1.24489691,113660.0,113650.0,0.5403946]
[1758731559533,0.84489691,113660.0,113650.0,0.4524474]
[1758731559831,0.84489691,113660.0,113650.0,0.5175346]
[1758731560334,0.84489691,113660.0,113650.0,0.5403946]
[1758731560822,0.84489691,113660.0,113650.0,0.4524474]
[1758731561523,0.84489691,113660.0,113650.0,0.5175346]
[1758731561728,0.84489691,113660.0,113650.0,0.5403946]
[1758731562639,0.84489691,113660.0,113650.0,0.4524474]
[1758731562932,0.84489691,113660.0,113650.0,0.0687874]
[1758731563132,0.1223972,113650.0,113640.0,0.82291239]
[1758731563439,1.27418059,113650.0,113640.0,0.471609]
[1758731564637,0.122405,113640.0,113630.0,0.38366]
[1758731564934,0.122405,113640.0,113630.0,0.4716227]
[1758731565135,0.82501178,113640.0,113630.0,0.82292609]
[1758731565336,0.47370839,113640.0,113630.0,0.82292609]
[1758731565629,0.82501178,113640.0,113630.0,0.82292609]
[1758731566035,0.82401178,113640.0,113630.0,0.82292609]
[1758731566834,0.82401178,113640.0,113630.0,0.83192609]
[1758731567435,0.82401178,113640.0,113630.0,0.4806227]
[1758731567636,0.82401178,113640.0,113630.0,0.83192609]
[1758731569440,0.82401178,113640.0,113630.0,0.4806227]
[1758731570638,1.22401178,113640.0,113630.0,0.0969627]
[1758731572235,1.22401178,113640.0,113630.0,0.009]
[1758731572642,1.22417598,113640.0,113630.0,0.0969627]
[1758731573143,1.22417598,113640.0,113630.0,0.009]
[1758731573641,1.58497598,113640.0,113630.0,0.009]
[1758731576449,1.58497598,113640.0,113630.0,0.007]
[1758731576951,0.1224627,113630.0,113620.0,0.1090744]
[1758731577249,1.27432819,113630.0,113620.0,0.4698744]
[1758731579956,1.27432819,113630.0,113620.0,0.4718744]
[1758731580157,1.27432819,113630.0,113620.0,0.4778744]
[1758731581044,1.27432819,113630.0,113620.0,0.008]
[1758731581653,1.28334515,113630.0,113620.0,0.008]
[1758731582749,1.27432819,113630.0,113620.0,0.008]
[1758731582952,1.27432819,113630.0,113620.0,0.0959703]
[1758731583153,1.27432819,113630.0,113620.0,0.1182503]
[1758731586461,1.27432819,113630.0,113620.0,0.008]
[1758731586656,1.27432819,113630.0,113620.0,0.0959703]
[1758731587160,1.27432819,113630.0,113620.0,0.1182503]
[1758731590655,1.27432819,113630.0,113620.0,0.008]
[1758731591761,1.27432819,113630.0,113620.0,0.0959703]
[1758731592161,1.27432819,113630.0,113620.0,0.1182503]
[1758731594455,1.27432819,113630.0,113620.0,0.008]
[1758731595462,1.27432819,113630.0,113620.0,0.0959702]
[1758731596359,1.27432819,113630.0,113620.0,0.1182502]
[1758731598160,0.83498,113630.0,113620.0,0.4790502]
[1758731598361,1.18628549,113630.0,113620.0,0.4920802]
[1758731598664,0.8349,113630.0,113620.0,0.4920802]
[1758731599163,0.0345,113630.0,113620.0,0.4920802]
[1758731599360,0.8349,113630.0,113620.0,0.4920802]
[1758731599863,0.02133,113630.0,113620.0,0.4920802]
[1758731600062,0.9096925,113630.0,113620.0,0.4920802]
[1758731600768,0.9233725,113630.0,113620.0,0.4920802]
[1758731601560,1.27475799,113630.0,113620.0,0.4790502]
[1758731603163,1.18679549,113630.0,113620.0,0.4790502]
[1758731604266,1.27475799,113630.0,113620.0,0.4790502]
[1758731608972,1.63555799,113630.0,113620.0,0.008]
[1758731609675,2.03555799,113630.0,113620.0,0.008]
[1758731612772,2.03555799,113630.0,113620.0,0.002]
[1758731613173,0.123578,113610.0,113600.0,0.47103]
[1758731613470,0.1235858,113600.0,113590.0,0.4710378]
[1758731613674,0.47497129,113600.0,113590.0,0.38305]
[1758731613862,0.47497129,113600.0,113590.0,0.4710435]
[1758731614469,0.47197129,113600.0,113590.0,0.4710435]
[1758731614668,0.47197129,113600.0,113590.0,0.54246476]
[1758731614871,0.45997129,113600.0,113590.0,0.54246476]
[1758731615172,0.1085858,113600.0,113590.0,0.54246476]
[1758731615473,0.45997129,113600.0,113590.0,0.54246476]
[1758731615776,0.45997129,113600.0,113590.0,0.55946476]
[1758731617076,0.45997129,113600.0,113590.0,0.56346476]
[1758731617867,0.45997129,113600.0,113590.0,0.56146476]
[1758731618379,0.45997129,113600.0,113590.0,0.54446476]
[1758731618576,0.46797129,113600.0,113590.0,0.54446476]
[1758731623082,0.46797129,113600.0,113590.0,0.4730435]
[1758731630579,0.03645,113590.0,113580.0,0.85893198]
[1758731630792,0.823,113590.0,113580.0,0.85893198]
[1758731631089,0.823,113590.0,113580.0,0.94696402]
[1758731631277,0.823,113590.0,113580.0,0.95599346]
[1758731631586,0.82185309,113600.0,113590.0,0.1100935]
[1758731631587,0.4052,113600.0,113590.0,0.1100935]
[1758731631794,0.83096,113600.0,113590.0,0.46492899]
[1758731632189,0.82296,113600.0,113590.0,0.46492899]
[1758731632491,0.9246757,113600.0,113590.0,0.1100935]
[1758731632689,1.63686119,113600.0,113590.0,0.1100935]
[1758731632884,1.63686119,113600.0,113590.0,0.0879935]
[1758731633191,1.63686119,113600.0,113590.0,0.0899935]
[1758731633694,1.2854757,113600.0,113590.0,0.1120935]
[1758731633885,1.63686119,113600.0,113590.0,0.1120935]
[1758731634191,1.63686119,113600.0,113590.0,0.1140935]
[1758731634594,1.9885382,113600.0,113590.0,0.1140935]
[1758731635494,1.5397525,113600.0,113590.0,0.1140935]
[1758731636195,1.6277383,113600.0,113590.0,0.1140935]
[1758731636890,0.38798125,113600.0,113590.0,0.46562475]
[1758731637299,1.18822125,113600.0,113590.0,0.46562475]
[1758731638894,1.9885382,113600.0,113590.0,0.1140935]
[1758731639995,1.9005525,113600.0,113590.0,0.1140935]
[1758731640697,1.9005525,113600.0,113590.0,0.46562475]
[1758731640894,1.9885383,113600.0,113590.0,0.0919935]
[1758731641095,1.2854758,113600.0,113590.0,0.0919935]
[1758731641295,1.9885383,113600.0,113590.0,0.1150135]
[1758731641497,1.9885383,113600.0,113590.0,0.0919935]
[1758731642900,1.9885383,113600.0,113590.0,0.1150135]
[1758731643111,1.9885383,113600.0,113590.0,0.0919935]
[1758731644403,2.74006955,113600.0,113590.0,0.004]
[1758731645104,2.3885383,113600.0,113590.0,0.004]
[1758731647203,2.3925383,113600.0,113590.0,0.002]
[1758731647802,0.1016535,113590.0,113580.0,0.111019]
[1758731648004,0.83412475,113590.0,113580.0,0.111019]
[1758731649997,1.185656,113590.0,113580.0,0.111019]
[1758731650301,1.2736572,113590.0,113570.0,0.51885507]
[1758731650496,1.6260237,113580.0,113570.0,0.18171657]
[1758731650690,1.6260237,113580.0,113570.0,0.02302]
[1758731650691,2.00704975,113580.0,113570.0,0.02302]
[1758731650893,0.1228167,113560.0,113550.0,0.62070266]